[Event "December 12 Early 2023"]
[Site "https://www.chess.com"]
[Date "2023.12.12"]
[Round "7"]
[White "Duda, Jan-Krzysztof"]
[Black "Szpar, Milosz"]
[Result "1/2-1/2"]
[Board "8"]
[TimeControl "180+1"]
[WhiteFideId "1170546"]
[BlackFideId "1184989"]
[WhiteElo "3054"]
[BlackElo "2881"]
[WhiteTeam "POL"]
[BlackTeam "POL"]
[WhiteClock "0:00:08"]
[BlackClock "0:00:06"]

1. d4 {[%clk 0:03:00]}  d5 {[%clk 0:03:00]} 2. c4 {[%clk 0:03:00]}  c6 {[%clk 0:02:59]} 3. Nf3 {[%clk 0:02:59]}  Nf6 {[%clk 0:02:59]} 4. Nbd2 {[%clk 0:02:55]}  Bf5 {[%clk 0:02:56]} 5. Nh4 {[%clk 0:02:54]}  Be4 {[%clk 0:02:49]} 6. e3 {[%clk 0:02:51]}  e6 {[%clk 0:02:47]} 7. Qb3 {[%clk 0:02:43]}  Qc7 {[%clk 0:02:43]} 8. Be2 {[%clk 0:02:37]}  Be7 {[%clk 0:02:39]} 9. O-O {[%clk 0:02:34]}  O-O {[%clk 0:02:39]} 10. Nxe4 {[%clk 0:02:29]}  dxe4 {[%clk 0:02:33]} 11. g3 {[%clk 0:02:29]}  c5 {[%clk 0:02:32]} 12. dxc5 {[%clk 0:02:28]}  Nfd7 {[%clk 0:02:03]} 13. Ng2 {[%clk 0:02:19]}  Nc6 {[%clk 0:01:59]} 14. Bd2 {[%clk 0:02:10]}  Nxc5 {[%clk 0:01:50]} 15. Qc2 {[%clk 0:02:09]}  a5 {[%clk 0:01:45]} 16. Rad1 {[%clk 0:02:00]}  Bf6 {[%clk 0:01:30]} 17. Nf4 {[%clk 0:01:57]}  Rfd8 {[%clk 0:01:21]} 18. a3 {[%clk 0:01:42]}  Qb6 {[%clk 0:00:52]} 19. Bc3 {[%clk 0:01:34]}  Bxc3 {[%clk 0:00:51]} 20. Qxc3 {[%clk 0:01:34]}  Qb3 {[%clk 0:00:51]} 21. Qxb3 {[%clk 0:01:18]}  Nxb3 {[%clk 0:00:52]} 22. Rxd8+ {[%clk 0:00:55]}  Rxd8 {[%clk 0:00:52]} 23. Rd1 {[%clk 0:00:56]}  Rd2 {[%clk 0:00:22]} 24. Rxd2 {[%clk 0:00:44]}  Nxd2 {[%clk 0:00:22]} 25. h4 {[%clk 0:00:32]}  Ne5 {[%clk 0:00:22]} 26. Kg2 {[%clk 0:00:22]}  Ndxc4 {[%clk 0:00:17]} 27. a4 {[%clk 0:00:10]}  Nxb2 {[%clk 0:00:13]} 28. Bb5 {[%clk 0:00:10]}  Nbd3 {[%clk 0:00:11]} 29. Ne2 {[%clk 0:00:10]}  Nc5 {[%clk 0:00:10]} 30. Nc3 {[%clk 0:00:08]}  f5 {[%clk 0:00:10]} 31. Kf1 {[%clk 0:00:07]}  Kf7 {[%clk 0:00:09]} 32. Ke2 {[%clk 0:00:08]}  Ke7 {[%clk 0:00:10]} 33. Kd2 {[%clk 0:00:06]}  Ned3 {[%clk 0:00:09]} 34. f3 {[%clk 0:00:04]}  Ne5 {[%clk 0:00:04]} 35. fxe4 {[%clk 0:00:04]}  fxe4 {[%clk 0:00:04]} 36. Ke2 {[%clk 0:00:04]}  Kd6 {[%clk 0:00:04]} 37. Nd1 {[%clk 0:00:04]}  Ned3 {[%clk 0:00:03]} 38. Nc3 {[%clk 0:00:04]}  Ne5 {[%clk 0:00:03]} 39. Nd1 {[%clk 0:00:04]}  Ng4 {[%clk 0:00:03]} 40. Nc3 {[%clk 0:00:04]}  Nf6 {[%clk 0:00:04]} 41. Nd1 {[%clk 0:00:04]}  Ke5 {[%clk 0:00:04]} 42. Kd2 {[%clk 0:00:04]}  Nd5 {[%clk 0:00:05]} 43. g4 {[%clk 0:00:04]}  g6 {[%clk 0:00:05]} 44. g5 {[%clk 0:00:04]}  Ne7 {[%clk 0:00:05]} 45. Nb2 {[%clk 0:00:04]}  Nf5 {[%clk 0:00:04]} 46. Nc4+ {[%clk 0:00:04]}  Kd5 {[%clk 0:00:04]} 47. Nxa5 {[%clk 0:00:05]}  Nxh4 {[%clk 0:00:05]} 48. Nc4 {[%clk 0:00:03]}  Nf3+ {[%clk 0:00:05]} 49. Ke2 {[%clk 0:00:04]}  Nxg5 {[%clk 0:00:06]} 50. a5 {[%clk 0:00:04]}  h5 {[%clk 0:00:06]} 51. Nb6+ {[%clk 0:00:04]}  Kd6 {[%clk 0:00:05]} 52. Be8 {[%clk 0:00:05]}  h4 {[%clk 0:00:05]} 53. Bxg6 {[%clk 0:00:05]}  h3 {[%clk 0:00:05]} 54. Kf2 {[%clk 0:00:06]}  Nb3 {[%clk 0:00:04]} 55. Nc4+ {[%clk 0:00:04]}  Kc5 {[%clk 0:00:04]} 56. Ne5 {[%clk 0:00:02]}  Nxa5 {[%clk 0:00:04]} 57. Kg3 {[%clk 0:00:03]}  Kd5 {[%clk 0:00:04]} 58. Nd7 {[%clk 0:00:02]}  Nc4 {[%clk 0:00:04]} 59. Nf6+ {[%clk 0:00:02]}  Ke5 {[%clk 0:00:04]} 60. Ng4+ {[%clk 0:00:03]}  Kd6 {[%clk 0:00:05]} 61. Kf4 {[%clk 0:00:03]}  Nf3 {[%clk 0:00:04]} 62. Bxe4 {[%clk 0:00:03]}  Nfd2 {[%clk 0:00:03]} 63. Bxb7 {[%clk 0:00:04]}  e5+ {[%clk 0:00:03]} 64. Kg3 {[%clk 0:00:04]}  Nf1+ {[%clk 0:00:03]} 65. Kf2 {[%clk 0:00:04]}  Nfxe3 {[%clk 0:00:03]} 66. Nxe3 {[%clk 0:00:04]}  Nxe3 {[%clk 0:00:03]} 67. Kxe3 {[%clk 0:00:05]}  h2 {[%clk 0:00:03]} 68. Be4 {[%clk 0:00:06]}  Kc5 {[%clk 0:00:03]} 69. Bh1 {[%clk 0:00:06]}  Kb4 {[%clk 0:00:04]} 70. Be4 {[%clk 0:00:07]}  Kc3 {[%clk 0:00:05]} 71. Bh1 {[%clk 0:00:07]}  Kb2 {[%clk 0:00:06]} 72. Kd2 {[%clk 0:00:07]}  e4 {[%clk 0:00:06]} 73. Bxe4 {[%clk 0:00:08]}  h1=Q {[%clk 0:00:06]} 74. Bxh1 {[%clk 0:00:08]} 1/2-1/2

[Event "December 12 Early 2023"]
[Site "https://www.chess.com"]
[Date "2023.12.12"]
[Round "7"]
[White "Sarana, Alexey"]
[Black "Putnam, Liam"]
[Result "1-0"]
[Board "10"]
[TimeControl "180+1"]
[WhiteFideId "24133795"]
[BlackFideId "30938279"]
[WhiteElo "3029"]
[BlackElo "2851"]
[WhiteTeam "SRB"]
[BlackTeam "USA"]
[WhiteClock "0:01:10"]
[BlackClock "0:00:24"]

1. d4 {[%clk 0:02:58]}  Nf6 {[%clk 0:02:51]} 2. c4 {[%clk 0:02:57]}  e6 {[%clk 0:02:51]} 3. Nc3 {[%clk 0:02:58]}  Bb4 {[%clk 0:02:51]} 4. e3 {[%clk 0:02:57]}  O-O {[%clk 0:02:52]} 5. Bd3 {[%clk 0:02:58]}  d5 {[%clk 0:02:52]} 6. a3 {[%clk 0:02:57]}  Bxc3+ {[%clk 0:02:47]} 7. bxc3 {[%clk 0:02:58]}  b6 {[%clk 0:02:46]} 8. cxd5 {[%clk 0:02:56]}  exd5 {[%clk 0:02:36]} 9. Ne2 {[%clk 0:02:55]}  Ba6 {[%clk 0:02:35]} 10. f3 {[%clk 0:02:56]}  c5 {[%clk 0:02:28]} 11. O-O {[%clk 0:02:55]}  Bxd3 {[%clk 0:02:26]} 12. Qxd3 {[%clk 0:02:56]}  Re8 {[%clk 0:02:27]} 13. Ng3 {[%clk 0:02:55]}  Nc6 {[%clk 0:02:25]} 14. Bb2 {[%clk 0:02:55]}  Na5 {[%clk 0:02:25]} 15. e4 {[%clk 0:02:37]}  cxd4 {[%clk 0:02:08]} 16. cxd4 {[%clk 0:02:37]}  dxe4 {[%clk 0:01:55]} 17. fxe4 {[%clk 0:02:37]}  Rc8 {[%clk 0:01:56]} 18. d5 {[%clk 0:02:24]}  Nd7 {[%clk 0:01:29]} 19. Nf5 {[%clk 0:02:17]}  f6 {[%clk 0:01:29]} 20. Qg3 {[%clk 0:02:14]}  g6 {[%clk 0:01:29]} 21. Nd6 {[%clk 0:02:14]}  Nc4 {[%clk 0:01:23]} 22. Nxe8 {[%clk 0:02:03]}  Qxe8 {[%clk 0:01:22]} 23. Bxf6 {[%clk 0:02:01]}  Nxf6 {[%clk 0:01:23]} 24. Rxf6 {[%clk 0:02:01]}  Qxe4 {[%clk 0:01:24]} 25. Rd1 {[%clk 0:01:28]}  Ne3 {[%clk 0:01:10]} 26. Re1 {[%clk 0:01:12]}  Qd4 {[%clk 0:00:24]} 27. Rf4 {[%clk 0:01:10]} 1-0

[Event "December 12 Early 2023"]
[Site "https://www.chess.com"]
[Date "2023.12.12"]
[Round "7"]
[White "Finek, Vaclav"]
[Black "Vokhidov, Shamsiddin"]
[Result "0-1"]
[Board "11"]
[TimeControl "180+1"]
[WhiteFideId "23718293"]
[BlackFideId "14204223"]
[WhiteElo "2851"]
[BlackElo "3009"]
[WhiteTeam "CZE"]
[BlackTeam "UZB"]
[WhiteClock "0:00:03"]
[BlackClock "0:00:26"]

1. d4 {[%clk 0:03:00]}  Nf6 {[%clk 0:03:00]} 2. g3 {[%clk 0:03:00]}  e6 {[%clk 0:03:01]} 3. c4 {[%clk 0:02:59]}  d5 {[%clk 0:03:01]} 4. Bg2 {[%clk 0:02:57]}  dxc4 {[%clk 0:03:01]} 5. Nf3 {[%clk 0:02:56]}  Bb4+ {[%clk 0:03:02]} 6. Bd2 {[%clk 0:02:53]}  a5 {[%clk 0:03:02]} 7. O-O {[%clk 0:02:53]}  O-O {[%clk 0:03:01]} 8. Qc2 {[%clk 0:02:53]}  b5 {[%clk 0:02:59]} 9. Bg5 {[%clk 0:02:38]}  Bb7 {[%clk 0:02:58]} 10. Bxf6 {[%clk 0:02:37]}  Qxf6 {[%clk 0:02:59]} 11. Ng5 {[%clk 0:02:37]}  Qxg5 {[%clk 0:02:59]} 12. Bxb7 {[%clk 0:02:37]}  Ra7 {[%clk 0:03:00]} 13. Be4 {[%clk 0:02:37]}  g6 {[%clk 0:02:59]} 14. a4 {[%clk 0:02:30]}  c6 {[%clk 0:02:57]} 15. e3 {[%clk 0:02:30]}  Rc8 {[%clk 0:02:56]} 16. Nc3 {[%clk 0:02:28]}  Bxc3 {[%clk 0:02:19]} 17. Qxc3 {[%clk 0:02:24]}  Nd7 {[%clk 0:02:16]} 18. b3 {[%clk 0:02:18]}  cxb3 {[%clk 0:02:11]} 19. Qxb3 {[%clk 0:02:09]}  b4 {[%clk 0:02:10]} 20. Rac1 {[%clk 0:02:08]}  c5 {[%clk 0:02:10]} 21. Rfd1 {[%clk 0:01:53]}  Rac7 {[%clk 0:02:09]} 22. d5 {[%clk 0:01:42]}  c4 {[%clk 0:02:09]} 23. Qb1 {[%clk 0:01:42]}  exd5 {[%clk 0:02:07]} 24. Rxd5 {[%clk 0:01:40]}  Qe7 {[%clk 0:02:07]} 25. Rxa5 {[%clk 0:01:39]}  b3 {[%clk 0:02:02]} 26. Rb5 {[%clk 0:01:34]}  Qa3 {[%clk 0:01:53]} 27. Bd5 {[%clk 0:01:30]}  Qxa4 {[%clk 0:01:50]} 28. Rb7 {[%clk 0:01:18]}  Rxb7 {[%clk 0:01:46]} 29. Bxb7 {[%clk 0:01:19]}  Rc7 {[%clk 0:01:46]} 30. Bd5 {[%clk 0:01:18]}  Nb6 {[%clk 0:01:46]} 31. e4 {[%clk 0:01:07]}  Nxd5 {[%clk 0:01:40]} 32. exd5 {[%clk 0:01:08]}  c3 {[%clk 0:01:40]} 33. d6 {[%clk 0:01:07]}  Rc8 {[%clk 0:01:27]} 34. d7 {[%clk 0:01:02]}  Qxd7 {[%clk 0:01:27]} 35. Qxb3 {[%clk 0:01:02]}  c2 {[%clk 0:01:26]} 36. Qe3 {[%clk 0:00:55]}  Qd5 {[%clk 0:01:21]} 37. Qe2 {[%clk 0:00:44]}  Qc6 {[%clk 0:01:13]} 38. Qd2 {[%clk 0:00:38]}  h5 {[%clk 0:01:10]} 39. h4 {[%clk 0:00:36]}  Qe4 {[%clk 0:01:08]} 40. Kh2 {[%clk 0:00:35]}  Rc6 {[%clk 0:01:06]} 41. Qd8+ {[%clk 0:00:34]}  Kg7 {[%clk 0:01:06]} 42. Qd2 {[%clk 0:00:34]}  Qf5 {[%clk 0:01:01]} 43. Qd4+ {[%clk 0:00:29]}  Qf6 {[%clk 0:01:02]} 44. Qd2 {[%clk 0:00:11]}  Qc3 {[%clk 0:01:01]} 45. Qe2 {[%clk 0:00:09]}  Qc4 {[%clk 0:00:56]} 46. Qd2 {[%clk 0:00:09]}  Qe4 {[%clk 0:00:54]} 47. Kg1 {[%clk 0:00:09]}  Rc5 {[%clk 0:00:51]} 48. Kh2 {[%clk 0:00:09]}  Qc6 {[%clk 0:00:44]} 49. Qd4+ {[%clk 0:00:08]}  Kh7 {[%clk 0:00:44]} 50. Qd2 {[%clk 0:00:08]}  Rc4 {[%clk 0:00:43]} 51. Qd3 {[%clk 0:00:05]}  Qc7 {[%clk 0:00:40]} 52. Qd2 {[%clk 0:00:05]}  Rxh4+ {[%clk 0:00:39]} 53. Kg1 {[%clk 0:00:05]}  Rc4 {[%clk 0:00:40]} 54. Qd3 {[%clk 0:00:03]}  Qc6 {[%clk 0:00:35]} 55. Qd8 {[%clk 0:00:02]}  h4 {[%clk 0:00:33]} 56. gxh4 {[%clk 0:00:01]}  Rg4+ {[%clk 0:00:31]} 57. Kf1 {[%clk 0:00:02]}  Qh1+ {[%clk 0:00:31]} 58. Ke2 {[%clk 0:00:02]}  Qxc1 {[%clk 0:00:31]} 59. Qd7 {[%clk 0:00:03]}  Re4+ {[%clk 0:00:27]} 60. Kf3 {[%clk 0:00:03]}  Qf4+ {[%clk 0:00:26]} 61. Kg2 {[%clk 0:00:03]} 0-1

[Event "December 12 Early 2023"]
[Site "https://www.chess.com"]
[Date "2023.12.12"]
[Round "7"]
[White "Zhigalko, Sergei"]
[Black "Materia, Marco"]
[Result "0-1"]
[Board "13"]
[TimeControl "180+1"]
[WhiteFideId "13502956"]
[BlackFideId "45150451"]
[WhiteElo "2956"]
[BlackElo "2835"]
[WhiteTeam "BLR"]
[BlackTeam "FRA"]
[WhiteClock "0:00:00"]
[BlackClock "0:00:41"]

1. e4 {[%clk 0:03:00]}  c5 {[%clk 0:02:59]} 2. Nf3 {[%clk 0:03:00]}  e6 {[%clk 0:02:59]} 3. c3 {[%clk 0:03:01]}  d5 {[%clk 0:02:59]} 4. e5 {[%clk 0:03:00]}  d4 {[%clk 0:02:56]} 5. Bd3 {[%clk 0:02:59]}  Nc6 {[%clk 0:02:53]} 6. O-O {[%clk 0:02:59]}  Nge7 {[%clk 0:02:48]} 7. Re1 {[%clk 0:02:59]}  g6 {[%clk 0:02:43]} 8. Na3 {[%clk 0:02:38]}  Bg7 {[%clk 0:02:41]} 9. Nc4 {[%clk 0:02:38]}  O-O {[%clk 0:02:41]} 10. a4 {[%clk 0:02:38]}  b6 {[%clk 0:02:35]} 11. Be4 {[%clk 0:02:28]}  Ba6 {[%clk 0:02:17]} 12. Qb3 {[%clk 0:02:19]}  Rb8 {[%clk 0:02:14]} 13. d3 {[%clk 0:01:29]}  Bxc4 {[%clk 0:01:50]} 14. dxc4 {[%clk 0:01:25]}  Nxe5 {[%clk 0:01:48]} 15. Bf4 {[%clk 0:01:24]}  Nxf3+ {[%clk 0:01:27]} 16. Bxf3 {[%clk 0:01:23]}  e5 {[%clk 0:01:10]} 17. Bxe5 {[%clk 0:01:16]}  Bxe5 {[%clk 0:01:11]} 18. Rxe5 {[%clk 0:01:17]}  dxc3 {[%clk 0:01:08]} 19. Qxc3 {[%clk 0:00:57]}  Nf5 {[%clk 0:01:07]} 20. Bd5 {[%clk 0:00:52]}  Nd4 {[%clk 0:01:06]} 21. Rae1 {[%clk 0:00:51]}  Qf6 {[%clk 0:01:03]} 22. Re7 {[%clk 0:00:43]}  a6 {[%clk 0:00:55]} 23. h3 {[%clk 0:00:22]}  b5 {[%clk 0:00:51]} 24. cxb5 {[%clk 0:00:19]}  axb5 {[%clk 0:00:52]} 25. a5 {[%clk 0:00:13]}  Qd6 {[%clk 0:00:49]} 26. R1e5 {[%clk 0:00:08]}  Kh8 {[%clk 0:00:43]} 27. a6 {[%clk 0:00:00]}  f6 {[%clk 0:00:41]} 0-1

[Event "December 12 Early 2023"]
[Site "https://www.chess.com"]
[Date "2023.12.12"]
[Round "7"]
[White "Goh, Wei Ming Kevin"]
[Black "Zakhartsov, Vladimir"]
[Result "0-1"]
[Board "14"]
[TimeControl "180+1"]
[WhiteFideId "5800706"]
[BlackFideId "4145097"]
[WhiteElo "2776"]
[BlackElo "2925"]
[WhiteTeam "SGP"]
[BlackTeam "RUS"]
[WhiteClock "0:00:00"]
[BlackClock "0:00:04"]

1. e4 {[%clk 0:03:00]}  c5 {[%clk 0:03:00]} 2. Nf3 {[%clk 0:03:00]}  Nc6 {[%clk 0:03:00]} 3. b4 {[%clk 0:02:58]}  d6 {[%clk 0:02:51]} 4. b5 {[%clk 0:02:55]}  Nd4 {[%clk 0:02:50]} 5. c3 {[%clk 0:02:44]}  Nxf3+ {[%clk 0:02:49]} 6. Qxf3 {[%clk 0:02:45]}  Nf6 {[%clk 0:02:48]} 7. d4 {[%clk 0:02:42]}  cxd4 {[%clk 0:02:42]} 8. cxd4 {[%clk 0:02:43]}  e5 {[%clk 0:02:43]} 9. Bc4 {[%clk 0:02:21]}  Qc7 {[%clk 0:02:22]} 10. Nd2 {[%clk 0:02:20]}  Be7 {[%clk 0:02:12]} 11. O-O {[%clk 0:02:20]}  O-O {[%clk 0:02:12]} 12. Bb2 {[%clk 0:02:21]}  Bg4 {[%clk 0:02:10]} 13. Qg3 {[%clk 0:02:12]}  Qd7 {[%clk 0:02:07]} 14. a4 {[%clk 0:01:57]}  Nh5 {[%clk 0:01:57]} 15. Qe3 {[%clk 0:01:55]}  Nf4 {[%clk 0:01:46]} 16. dxe5 {[%clk 0:01:44]}  Bg5 {[%clk 0:01:45]} 17. Qc3 {[%clk 0:01:17]}  Rac8 {[%clk 0:01:39]} 18. exd6 {[%clk 0:01:11]}  Ne2+ {[%clk 0:01:32]} 19. Bxe2 {[%clk 0:01:10]}  Rxc3 {[%clk 0:01:32]} 20. Bxg4 {[%clk 0:01:09]}  Qxd6 {[%clk 0:00:57]} 21. Bxc3 {[%clk 0:01:07]}  Bxd2 {[%clk 0:00:57]} 22. Rfd1 {[%clk 0:00:52]}  Qf4 {[%clk 0:00:56]} 23. Bxd2 {[%clk 0:00:50]}  Qxg4 {[%clk 0:00:56]} 24. f3 {[%clk 0:00:51]}  Qe6 {[%clk 0:00:53]} 25. Be3 {[%clk 0:00:51]}  a6 {[%clk 0:00:48]} 26. Bf2 {[%clk 0:00:43]}  h6 {[%clk 0:00:42]} 27. Rab1 {[%clk 0:00:29]}  Qa2 {[%clk 0:00:36]} 28. Ra1 {[%clk 0:00:29]}  Qe6 {[%clk 0:00:34]} 29. Rab1 {[%clk 0:00:29]}  Rc8 {[%clk 0:00:32]} 30. Rd2 {[%clk 0:00:25]}  Rc4 {[%clk 0:00:23]} 31. bxa6 {[%clk 0:00:21]}  bxa6 {[%clk 0:00:21]} 32. a5 {[%clk 0:00:20]}  Ra4 {[%clk 0:00:21]} 33. Bb6 {[%clk 0:00:20]}  Kh7 {[%clk 0:00:21]} 34. Rbd1 {[%clk 0:00:21]}  Qc6 {[%clk 0:00:17]} 35. h3 {[%clk 0:00:20]}  Ra3 {[%clk 0:00:15]} 36. Rd6 {[%clk 0:00:20]}  Qc2 {[%clk 0:00:15]} 37. R6d2 {[%clk 0:00:20]}  Qc3 {[%clk 0:00:14]} 38. Kh2 {[%clk 0:00:19]}  Qe5+ {[%clk 0:00:14]} 39. Kg1 {[%clk 0:00:19]}  Qg3 {[%clk 0:00:13]} 40. Kh1 {[%clk 0:00:19]}  Qg6 {[%clk 0:00:11]} 41. Rd6 {[%clk 0:00:17]}  Qg3 {[%clk 0:00:11]} 42. R6d2 {[%clk 0:00:14]}  Rb3 {[%clk 0:00:11]} 43. Rf1 {[%clk 0:00:11]}  h5 {[%clk 0:00:10]} 44. Rfd1 {[%clk 0:00:10]}  Qf4 {[%clk 0:00:10]} 45. Rd3 {[%clk 0:00:06]}  Rb2 {[%clk 0:00:08]} 46. Rg1 {[%clk 0:00:04]}  Ra2 {[%clk 0:00:06]} 47. Rd5 {[%clk 0:00:04]}  Kg6 {[%clk 0:00:06]} 48. Rf5 {[%clk 0:00:03]}  Qd2 {[%clk 0:00:05]} 49. Rd5 {[%clk 0:00:01]}  Qe2 {[%clk 0:00:05]} 50. Rd6+ {[%clk 0:00:01]}  f6 {[%clk 0:00:06]} 51. Rd5 {[%clk 0:00:02]}  Rc2 {[%clk 0:00:05]} 52. Rdd1 {[%clk 0:00:03]}  Qc4 {[%clk 0:00:05]} 53. Rde1 {[%clk 0:00:03]}  Qe6 {[%clk 0:00:05]} 54. Ref1 {[%clk 0:00:03]}  Kh7 {[%clk 0:00:05]} 55. Re1 {[%clk 0:00:03]}  Rc3 {[%clk 0:00:04]} 56. Rc1 {[%clk 0:00:04]}  Rxf3 {[%clk 0:00:04]} 57. Rce1 {[%clk 0:00:00]}  Rxh3+ {[%clk 0:00:04]} 0-1

[Event "December 12 Early 2023"]
[Site "https://www.chess.com"]
[Date "2023.12.12"]
[Round "7"]
[White "Maksimovic, Bojan"]
[Black "Matinian, Nikita"]
[Result "0-1"]
[Board "15"]
[TimeControl "180+1"]
[WhiteFideId "14408120"]
[BlackFideId "24129100"]
[WhiteElo "2915"]
[BlackElo "2758"]
[WhiteTeam "BIH"]
[BlackTeam "FID"]
[WhiteClock "0:00:00"]
[BlackClock "0:00:39"]

1. e4 {[%clk 0:03:00]}  c5 {[%clk 0:03:00]} 2. Nf3 {[%clk 0:02:59]}  d6 {[%clk 0:03:00]} 3. d4 {[%clk 0:03:00]}  cxd4 {[%clk 0:03:01]} 4. Nxd4 {[%clk 0:03:00]}  Nf6 {[%clk 0:03:01]} 5. Nc3 {[%clk 0:03:01]}  g6 {[%clk 0:03:02]} 6. Be3 {[%clk 0:03:01]}  Nc6 {[%clk 0:03:02]} 7. f3 {[%clk 0:02:55]}  h5 {[%clk 0:03:02]} 8. Bc4 {[%clk 0:02:47]}  Bg7 {[%clk 0:03:00]} 9. Qd2 {[%clk 0:02:43]}  Ne5 {[%clk 0:02:55]} 10. Bb3 {[%clk 0:02:42]}  Bd7 {[%clk 0:02:55]} 11. O-O-O {[%clk 0:02:35]}  a5 {[%clk 0:02:55]} 12. a4 {[%clk 0:02:29]}  Rc8 {[%clk 0:02:54]} 13. Kb1 {[%clk 0:02:22]}  Nc4 {[%clk 0:02:48]} 14. Qe2 {[%clk 0:02:09]}  Nxe3 {[%clk 0:02:46]} 15. Qxe3 {[%clk 0:02:10]}  O-O {[%clk 0:02:29]} 16. Ndb5 {[%clk 0:02:00]}  Rc5 {[%clk 0:02:14]} 17. h3 {[%clk 0:01:59]}  Qb6 {[%clk 0:02:12]} 18. Qe2 {[%clk 0:01:48]}  Rfc8 {[%clk 0:01:38]} 19. Rd3 {[%clk 0:01:20]}  Be6 {[%clk 0:01:32]} 20. Bxe6 {[%clk 0:01:10]}  fxe6 {[%clk 0:01:33]} 21. g4 {[%clk 0:01:06]}  Nd7 {[%clk 0:01:33]} 22. Ka1 {[%clk 0:00:11]}  Ne5 {[%clk 0:01:31]} 23. gxh5 {[%clk 0:00:11]}  Nxd3 {[%clk 0:01:29]} 24. Qxd3 {[%clk 0:00:12]}  Rxh5 {[%clk 0:01:16]} 25. e5 {[%clk 0:00:12]}  Kh7 {[%clk 0:01:04]} 26. exd6 {[%clk 0:00:09]}  exd6 {[%clk 0:01:05]} 27. Re1 {[%clk 0:00:06]}  Re5 {[%clk 0:00:55]} 28. Rd1 {[%clk 0:00:07]}  d5 {[%clk 0:00:52]} 29. f4 {[%clk 0:00:07]}  Re3 {[%clk 0:00:48]} 30. Qd2 {[%clk 0:00:06]}  Rcxc3 {[%clk 0:00:40]} 31. Nxc3 {[%clk 0:00:07]}  Rxc3 {[%clk 0:00:39]} 32. bxc3 {[%clk 0:00:00]}  Qb4 {[%clk 0:00:39]} 0-1

[Event "December 12 Early 2023"]
[Site "https://www.chess.com"]
[Date "2023.12.12"]
[Round "7"]
[White "Fedoseev, Vladimir"]
[Black "Weetik, Vjacheslav"]
[Result "1-0"]
[Board "16"]
[TimeControl "180+1"]
[WhiteFideId "24130737"]
[BlackFideId "4153472"]
[WhiteElo "3042"]
[BlackElo "2766"]
[WhiteTeam "SLO"]
[BlackTeam "RUS"]
[WhiteClock "0:00:13"]
[BlackClock "0:00:46"]

1. e4 {[%clk 0:03:00]}  c6 {[%clk 0:02:56]} 2. d4 {[%clk 0:03:00]}  d5 {[%clk 0:02:56]} 3. exd5 {[%clk 0:03:01]}  cxd5 {[%clk 0:02:57]} 4. Bd3 {[%clk 0:03:02]}  Nf6 {[%clk 0:02:57]} 5. c3 {[%clk 0:03:02]}  Bg4 {[%clk 0:02:58]} 6. Qb3 {[%clk 0:03:02]}  Qc7 {[%clk 0:02:58]} 7. Bg5 {[%clk 0:02:57]}  e6 {[%clk 0:02:47]} 8. Nd2 {[%clk 0:02:57]}  Nc6 {[%clk 0:02:43]} 9. Ngf3 {[%clk 0:02:55]}  Bd6 {[%clk 0:02:44]} 10. h3 {[%clk 0:02:53]}  Bh5 {[%clk 0:02:44]} 11. O-O {[%clk 0:02:50]}  O-O {[%clk 0:02:41]} 12. Rae1 {[%clk 0:02:45]}  Rab8 {[%clk 0:02:36]} 13. a4 {[%clk 0:02:43]}  a6 {[%clk 0:02:36]} 14. Qc2 {[%clk 0:02:08]}  Bg6 {[%clk 0:02:33]} 15. Bxg6 {[%clk 0:02:07]}  hxg6 {[%clk 0:02:32]} 16. Qd3 {[%clk 0:02:08]}  b5 {[%clk 0:02:28]} 17. axb5 {[%clk 0:02:07]}  axb5 {[%clk 0:02:29]} 18. Ra1 {[%clk 0:01:36]}  b4 {[%clk 0:02:17]} 19. c4 {[%clk 0:01:34]}  dxc4 {[%clk 0:02:12]} 20. Nxc4 {[%clk 0:01:35]}  Bf4 {[%clk 0:02:13]} 21. Bxf6 {[%clk 0:01:19]}  gxf6 {[%clk 0:02:13]} 22. Rfd1 {[%clk 0:01:08]}  Rfd8 {[%clk 0:02:12]} 23. b3 {[%clk 0:00:55]}  Ne7 {[%clk 0:02:03]} 24. Ra5 {[%clk 0:00:50]}  Nd5 {[%clk 0:02:02]} 25. Rda1 {[%clk 0:00:49]}  Kg7 {[%clk 0:01:58]} 26. Ra6 {[%clk 0:00:30]}  Rb7 {[%clk 0:01:42]} 27. Kf1 {[%clk 0:00:29]}  Qe7 {[%clk 0:01:36]} 28. Na5 {[%clk 0:00:24]}  Rc7 {[%clk 0:01:06]} 29. Nc6 {[%clk 0:00:22]}  Rxc6 {[%clk 0:01:07]} 30. Rxc6 {[%clk 0:00:23]}  Bb8 {[%clk 0:01:04]} 31. g3 {[%clk 0:00:21]}  Qb7 {[%clk 0:01:01]} 32. Qa6 {[%clk 0:00:20]}  Qe7 {[%clk 0:01:00]} 33. Rc8 {[%clk 0:00:19]}  g5 {[%clk 0:00:55]} 34. Rxd8 {[%clk 0:00:15]}  Qxd8 {[%clk 0:00:56]} 35. Qb7 {[%clk 0:00:15]}  Bd6 {[%clk 0:00:55]} 36. Ra8 {[%clk 0:00:14]}  Qc7 {[%clk 0:00:54]} 37. Qxc7 {[%clk 0:00:14]}  Bxc7 {[%clk 0:00:54]} 38. Nd2 {[%clk 0:00:13]}  f5 {[%clk 0:00:54]} 39. Nc4 {[%clk 0:00:13]}  Bd8 {[%clk 0:00:46]} 40. Rxd8 {[%clk 0:00:13]} 1-0